bitfinex-derivatives/quotes_ETHF0:USTF0_20240922
["timestamp","ask_amount","ask_price","bid_price","bid_amount"]
[1727044390949,3.59923,2554.6,2554.2,4.722]
[1727044391156,0.9409,2554.8,2554.2,4.722]
[1727044392348,3.59913,2555.3,2554.4,5.8378]
[1727044392552,3.2078,2555.3,2554.9,0.39137]
[1727044392744,3.59913,2555.3,2555.0,0.9856]
[1727044393452,3.2078,2555.3,2555.0,0.9856]
[1727044394162,3.2078,2555.3,2555.0,1.959]
[1727044394566,1.9845,2555.9,2555.1,0.9549]
[1727044395061,1.9845,2555.9,2555.3,0.39131]
[1727044395062,2.37574,2555.9,2555.3,0.39131]
[1727044395259,1.9845,2555.9,2555.4,0.3913]
[1727044395557,4.53532,2556.0,2555.5,1.8829]
[1727044395558,3.59902,2556.0,2555.5,1.8829]
[1727044395764,3.59902,2556.0,2555.6,4.72]
[1727044396151,3.2078,2556.7,2555.9,3.2078]
[1727044396359,3.2078,2556.4,2556.0,4.72]
[1727044396655,3.2078,2556.4,2555.9,4.72]
[1727044396851,0.39119,2556.2,2555.9,4.72]
[1727044397362,4.2009,2556.3,2556.0,0.39121]
[1727044397363,0.9931,2556.3,2556.0,0.39121]
[1727044397558,0.9506,2556.5,2556.1,0.39119]
[1727044397863,3.2078,2556.9,2556.0,5.8378]
[1727044398164,0.3911,2556.8,2556.2,0.39117]
[1727044398351,3.2078,2556.6,2556.2,0.39118]
[1727044398558,0.3911,2556.7,2556.2,0.39118]
[1727044398854,4.1584,2556.9,2556.1,1.9313]
[1727044399057,3.2078,2556.6,2556.0,3.2078]
[1727044399358,3.2078,2556.3,2556.0,4.719]
[1727044399563,0.9506,2556.9,2556.0,4.719]
[1727044399564,3.2078,2556.6,2556.0,4.719]
[1727044399755,3.2078,2556.6,2556.2,0.39117]
[1727044399950,3.2078,2556.3,2556.1,0.918]
[1727044400254,0.39113,2556.6,2556.1,0.918]
[1727044400255,3.59893,2556.6,2556.1,0.918]
[1727044400455,3.2078,2556.6,2556.1,0.918]
[1727044400763,3.2078,2556.6,2556.1,1.30919]
[1727044400960,4.1584,2556.9,2556.1,0.918]
[1727044401162,4.1584,2556.9,2556.3,0.39116]
[1727044401464,4.54948,2556.9,2556.3,0.39116]
[1727044401964,0.39109,2556.8,2556.3,0.39116]
[1727044402153,4.1584,2556.9,2556.3,0.39116]
[1727044402550,4.1584,2556.9,2556.5,0.39113]
[1727044402551,3.2078,2556.9,2556.5,0.39113]
[1727044402751,3.2078,2556.9,2556.4,0.39114]
[1727044402963,3.2078,2556.9,2556.5,0.39113]
[1727044403166,3.2078,2556.9,2556.6,0.9873]
[1727044403353,3.2078,2556.9,2556.7,4.7]
[1727044404156,3.2078,2556.9,2556.8,0.39109]
[1727044404363,3.2078,2556.9,2556.7,4.7]
[1727044404561,3.2078,2556.9,2556.8,0.39109]
[1727044404764,5.1036,2557.4,2556.8,4.8843]
[1727044404952,5.1036,2557.4,2556.8,0.9731]
[1727044405258,0.39102,2557.3,2556.8,0.9731]
[1727044405565,5.49461,2557.4,2556.9,0.39107]
[1727044405767,5.49461,2557.4,2556.8,0.9731]
[1727044405768,5.1036,2557.4,2556.8,0.9731]
[1727044405962,3.2078,2557.7,2556.9,3.2078]
[1727044406460,1.931,2558.0,2556.9,3.2078]
[1727044406461,5.1388,2558.0,2557.5,3.2078]
[1727044406667,5.1388,2558.0,2557.6,4.699]
[1727044406867,5.52972,2558.0,2557.6,4.699]
[1727044407063,5.1388,2558.0,2557.6,4.699]
[1727044407263,3.2078,2558.0,2557.6,4.699]
[1727044407458,3.2078,2558.0,2557.9,0.39092]
[1727044407854,0.00418193,2558.2,2558.1,0.39089]
[1727044408055,0.00418193,2558.2,2558.0,4.8522]
[1727044408256,0.00418193,2558.2,2558.0,5.2431]
[1727044408459,0.00418193,2558.2,2558.1,3.9088]
[1727044408863,0.00418193,2558.2,2558.0,0.9426]
[1727044409168,0.97727,2558.0,2557.1,4.698]
[1727044409360,0.39099,2557.5,2557.1,4.698]
[1727044409757,3.59877,2557.6,2557.1,5.08904]
[1727044409962,1.37683,2557.9,2557.4,0.391]
[1727044410163,1.37683,2557.9,2557.5,0.39097]
[1727044410164,0.9859,2557.9,2557.5,0.39097]
[1727044410355,0.9859,2557.9,2557.5,1.34167]
[1727044410554,0.9859,2557.9,2557.5,0.9507]
[1727044410758,0.39094,2557.8,2557.5,0.9507]
[1727044410956,3.2078,2557.7,2557.5,0.9507]
[1727044411166,3.59875,2557.7,2557.2,0.9483]
[1727044411368,3.59875,2557.7,2557.3,0.39101]
[1727044411664,0.39098,2557.6,2557.2,1.899]
[1727044411869,0.391,2557.4,2557.2,5.6477]
[1727044412067,3.2078,2557.5,2557.2,4.697]
[1727044412271,0.39105,2557.1,2556.9,0.9738]
[1727044412770,0.9783,2557.4,2556.9,0.9738]
[1727044412968,0.39105,2557.1,2556.9,0.9738]
[1727044413364,0.97729,2558.0,2557.0,11.52112933]
[1727044413365,3.2078,2557.5,2557.0,11.52112933]
[1727044413667,3.2078,2557.5,2557.0,2.63]
[1727044413868,3.2078,2557.5,2557.0,3.02106]
[1727044414162,3.2078,2557.5,2557.0,3.02105]
[1727044414364,3.2078,2557.5,2557.0,2.63]
[1727044414568,3.2078,2557.5,2557.2,0.39101]
[1727044414767,0.3909,2558.1,2557.5,0.39097]
[1727044415070,4.173,2558.1,2557.6,1.39366]
[1727044415274,4.173,2558.1,2557.7,0.39095]
[1727044415569,0.9652,2558.1,2557.6,6.8405]
[1727044415768,0.9652,2558.1,2557.6,4.93936]
[1727044416274,0.00418193,2558.2,2557.9,2.63]
[1727044416463,0.00418193,2558.2,2558.1,0.39089]
[1727044416659,0.00418193,2558.2,2558.1,3.9088]
[1727044416973,0.00418193,2558.2,2557.9,2.63]
[1727044417171,0.00418193,2558.2,2557.9,6.5396]
[1727044417372,0.00418193,2558.2,2558.1,0.39089]
[1727044417675,0.00418193,2558.2,2558.1,4.29969]
[1727044418870,0.00418193,2558.2,2558.1,3.9088]
[1727044419068,0.39506193,2558.2,2557.6,4.5484]
[1727044419269,3.5987,2558.1,2557.6,9.4804]
[1727044419471,3.21198193,2558.2,2557.7,0.39094]
[1727044419669,0.97723,2558.1,2557.6,5.9347]
[1727044419863,0.39094,2557.8,2557.6,4.932]
[1727044420069,0.9747,2557.7,2557.3,5.9448]
[1727044420273,1.36566,2557.7,2557.3,5.9448]
[1727044420472,0.39098,2557.6,2557.3,5.9448]
[1727044420674,1.36566,2557.7,2557.3,5.9448]
[1727044420865,0.39097,2557.6,2557.3,5.9448]
[1727044421066,1.36566,2557.7,2557.3,5.9448]
[1727044421266,0.9747,2557.7,2557.3,5.9448]
[1727044421671,1.36565,2557.7,2557.3,8.5748]
[1727044422271,0.39098,2557.5,2557.3,8.5748]
[1727044422473,0.9747,2557.7,2557.3,5.9448]
[1727044422778,0.391,2557.4,2557.3,4.932]
[1727044423075,3.2078,2557.6,2557.3,4.932]
[1727044423380,0.391,2557.4,2557.3,4.932]
[1727044423575,3.2078,2557.9,2557.4,3.9104]
[1727044423774,0.00418193,2558.2,2557.6,2.63]
[1727044424171,0.00418193,2558.2,2557.7,0.39094]
[1727044424366,0.00418193,2558.2,2557.6,2.63]
[1727044424571,0.00418193,2558.2,2558.0,0.39089]
[1727044424870,0.00418193,2558.2,2558.0,5.32289]
[1727044425174,0.00418193,2558.2,2558.1,0.9363]
[1727044425479,0.00418193,2558.2,2558.1,1.32719]
[1727044425678,0.00418193,2558.2,2558.1,4.8451]
[1727044425976,0.00418193,2558.2,2558.1,0.9463]
[1727044426376,0.00418193,2558.2,2558.1,0.01]
[1727044426583,0.39506193,2558.2,2558.1,0.01]
[1727044426783,0.00418193,2558.2,2558.1,0.01]
[1727044427079,0.39506193,2558.2,2558.1,0.01]
[1727044427982,0.00418193,2558.2,2558.1,0.01]
[1727044428577,0.39506193,2558.2,2558.1,0.01]
[1727044429370,4.30386193,2558.2,2558.1,0.01]
[1727044429574,11.28106193,2558.2,2558.1,0.01]
[1727044429769,5.28106193,2558.2,2558.1,0.01]
[1727044429971,4.30386193,2558.2,2558.1,0.01]
[1727044430173,0.39506193,2558.2,2558.1,0.01]
[1727044431776,0.00418193,2558.2,2558.1,0.01]
[1727044433487,0.00418193,2558.2,2558.1,9.24069]
[1727044434081,1.93e-06,2558.2,2558.1,15.24069]
[1727044434280,3.2078,2558.9,2558.2,0.97717]
[1727044434483,3.2078,2559.3,2558.7,2.63]
[1727044434786,3.2078,2559.3,2559.1,2.63]
[1727044435675,3.59851,2559.3,2559.1,2.63]
[1727044435877,4.29794,2559.2,2558.8,4.931]
[1727044436070,0.39077,2558.9,2558.8,4.931]
[1727044436275,3.2078,2559.0,2558.3,5.32185]
[1727044436588,3.2078,2558.7,2558.2,1.7904]
[1727044436785,3.2078,2558.7,2558.3,0.39086]
[1727044437081,3.5986,2558.7,2558.2,2.18127]
[1727044437286,3.2078,2558.7,2558.2,1.7904]
[1727044437583,3.2078,2558.7,2558.1,2.64]
[1727044437774,3.2078,2558.7,2558.2,1.36027]
[1727044438082,0.8983,2558.8,2558.1,3.5684]
[1727044438083,3.59866,2558.4,2558.1,0.01]
[1727044438475,7.1166,2558.4,2558.1,0.01]
[1727044438679,0.39088,2558.2,2558.1,0.01]
[1727044439076,9.9088,2558.2,2558.1,0.01]
[1727044439278,11.20928,2558.2,2558.1,0.01]
[1727044439881,11.20928,2558.2,2557.5,4.93]
[1727044440075,0.9677,2558.1,2557.2,7.7356]
[1727044440276,3.2078,2558.0,2557.2,6.8278]
[1727044440587,0.9677,2558.1,2557.2,7.21882]
[1727044440588,3.2078,2557.8,2557.2,7.21882]
[1727044440889,3.2078,2557.8,2557.3,3.2078]
[1727044440890,3.59874,2557.8,2557.3,3.2078]
[1727044441080,4.1755,2558.1,2557.3,0.391]
[1727044441286,3.2078,2557.8,2557.2,6.8278]
[1727044441781,3.2078,2557.8,2557.3,0.39101]
[1727044441976,4.1755,2558.1,2557.4,2.96]
[1727044442183,0.9704,2558.6,2557.9,3.2078]
[1727044442381,1.01239255,2558.8,2558.5,2.96]
[1727044442581,1.9381,2559.0,2558.5,2.96]
[1727044442781,0.9704,2559.0,2558.5,6.55862]
[1727044442986,0.9704,2559.0,2558.6,0.39081]
[1727044443288,3.2078,2559.3,2558.7,0.3908]
[1727044443480,3.2078,2559.3,2558.7,5.8639]
[1727044444084,3.2078,2559.3,2558.8,0.39078]
[1727044444980,3.2078,2559.3,2558.7,5.8639]
[1727044445178,3.2078,2559.3,2558.9,3.59856]
[1727044445380,3.2078,2559.3,2558.9,3.2078]
[1727044445595,3.2078,2559.3,2558.7,5.8639]
[1727044445784,0.8848,2559.6,2558.9,6.1678]
[1727044445980,0.9704,2559.8,2558.9,6.1678]
[1727044446183,0.9704,2559.8,2559.3,2.96]
[1727044446888,3.2078,2559.9,2559.3,2.96]
[1727044447083,3.2078,2559.9,2559.4,0.9182]
[1727044449689,3.59842,2559.9,2559.4,0.9182]
[1727044449993,3.2078,2559.9,2559.4,0.9182]
[1727044450189,3.2078,2559.9,2559.5,0.39067]
[1727044450385,3.2078,2559.9,2559.6,2.96]
[1727044450591,0.2,2560.0,2559.6,2.96]
[1727044450788,0.2,2560.0,2559.9,0.39062]
[1727044451287,3.2078,2560.6,2559.9,10.29702]
[1727044451594,0.39048,2560.8,2560.1,0.39058]
[1727044451901,0.3905,2560.7,2560.2,0.92]
[1727044452092,4.1476,2560.9,2560.2,0.92]
[1727044452397,4.1476,2560.9,2560.4,0.39053]
[1727044452893,4.1476,2560.9,2560.2,0.92]
[1727044453094,3.2078,2560.4,2559.7,5.142]
[1727044453285,3.2078,2560.4,2559.4,0.9037]
[1727044453286,3.59844,2559.8,2559.4,0.9214]
[1727044453592,0.97639,2560.3,2558.9,2.96]
[1727044453593,0.39066,2559.6,2559.0,0.8912]
[1727044453789,0.39068,2559.5,2559.0,0.8912]
[1727044453989,3.2078,2559.6,2559.0,0.8912]
[1727044453990,0.3907,2559.4,2559.0,0.8912]
[1727044454186,0.39066,2559.6,2559.0,0.8912]
[1727044454386,0.39068,2559.5,2559.0,4.099]
[1727044454600,0.39068,2559.5,2559.0,0.8912]
[1727044455097,3.2078,2559.6,2559.0,0.8912]
[1727044455290,0.39073,2559.2,2558.8,5.142]
[1727044455487,0.39069,2559.4,2558.8,5.53277]
[1727044455693,0.39069,2559.4,2558.9,2.96]
[1727044455694,3.2078,2559.4,2558.9,2.96]
[1727044455888,0.9343,2559.7,2559.3,2.96]
[1727044456084,1.32495,2559.7,2559.3,2.96]
[1727044456287,0.9343,2559.7,2559.2,0.39072]
[1727044456496,0.9343,2559.7,2559.0,1.31104]
[1727044456698,3.2078,2559.5,2558.9,2.96]
[1727044456899,3.2078,2559.5,2559.0,0.39074]
[1727044457195,0.3907,2559.4,2558.9,2.96]
[1727044457593,3.59849,2559.5,2558.9,3.35076]
[1727044457798,0.39071,2559.4,2558.9,2.96]
[1727044458193,3.2078,2559.5,2559.1,0.39073]
[1727044458391,0.39068,2559.6,2559.0,0.39075]
[1727044458696,0.39068,2559.5,2558.9,3.35076]
[1727044458893,3.2078,2559.5,2559.0,0.39074]
[1727044459093,3.2078,2559.5,2559.1,0.39074]
[1727044459494,3.59849,2559.5,2559.0,0.39075]
[1727044459702,3.2078,2559.5,2558.9,2.96]
[1727044459899,0.9343,2559.7,2559.0,3.2078]
[1727044460191,3.2078,2559.9,2559.6,0.39065]
[1727044460400,3.2078,2559.9,2559.3,6.1678]
[1727044460401,3.2078,2559.9,2559.5,5.53267]
[1727044460591,3.2078,2559.9,2559.5,5.142]
[1727044460991,3.2078,2559.9,2559.6,0.39066]
[1727044461184,3.2078,2559.9,2559.5,5.142]
[1727044462101,3.2078,2559.6,2558.9,5.141]
[1727044462293,0.39074,2559.1,2558.9,5.141]
[1727044462489,0.39074,2559.1,2558.6,8.33501]
[1727044462490,3.2078,2559.1,2558.8,0.39078]
[1727044462693,3.2078,2559.1,2558.7,5.141]
[1727044462997,3.2078,2559.1,2558.6,4.7364]
[1727044462998,3.2078,2559.0,2558.8,5.141]
[1727044463189,3.2078,2559.0,2558.6,4.7364]
[1727044463390,0.39077,2558.9,2558.7,5.141]
[1727044463587,0.39078,2558.8,2558.7,5.141]
[1727044464188,9.908,2558.8,2558.1,1.7764]
[1727044464394,1.8293,2558.9,2558.1,1.7764]
[1727044464395,3.2078,2558.3,2558.1,1.7764]
[1727044464804,3.2078,2558.3,2557.8,5.53293]
[1727044464805,3.59866,2558.3,2557.8,5.53293]
[1727044464993,3.59866,2558.3,2557.8,6.45003]
[1727044465299,3.2078,2558.3,2557.8,6.0591]
[1727044465694,3.59867,2558.3,2557.8,6.45003]
[1727044465896,3.2078,2558.3,2557.8,6.0591]
[1727044466204,0.39088,2558.2,2557.8,6.0591]
[1727044466393,3.2078,2558.3,2557.8,6.0591]
[1727044466394,3.59867,2558.3,2557.8,6.45003]
[1727044466700,0.39088,2558.2,2557.8,6.0591]
[1727044466897,0.39089,2558.1,2557.6,0.8658]
[1727044467097,0.8843,2558.6,2557.7,0.39095]
[1727044467098,3.2078,2558.0,2557.7,0.39095]
[1727044467300,3.2078,2558.0,2557.6,0.8658]
[1727044467598,3.2078,2558.0,2557.6,1.25676]
[1727044467990,3.2078,2558.0,2557.7,0.39095]
[1727044468398,3.2078,2558.0,2557.6,1.25676]
[1727044468595,3.2078,2558.0,2557.6,0.8658]
[1727044468789,3.2078,2558.0,2557.7,0.39095]
[1727044469295,3.59865,2558.4,2557.9,2.96]
[1727044469491,3.59865,2558.4,2557.9,3.35092]
[1727044469694,3.2078,2558.4,2558.0,0.3909]
[1727044469890,3.2078,2558.4,2557.9,2.96]
[1727044469891,3.2078,2558.4,2557.9,3.35091]
[1727044470096,3.2078,2558.4,2558.0,0.39091]
[1727044470498,3.2078,2558.4,2558.1,0.39089]
[1727044470693,3.59865,2558.4,2557.9,2.96]
[1727044470996,3.2078,2558.4,2557.8,0.8588]
[1727044471196,3.2078,2558.1,2557.8,0.8588]
[1727044473410,3.2078,2558.1,2556.9,21.89489017]
[1727044473593,0.97722,2558.2,2557.1,1.8197]
[1727044473594,3.2078,2557.6,2557.1,1.8197]
[1727044473792,2.74208,2558.0,2557.1,1.8197]
[1727044473793,3.2078,2557.9,2557.1,1.8197]
[1727044473993,3.2078,2557.6,2557.3,0.39101]
[1727044474400,3.2078,2557.6,2557.2,0.39102]
[1727044474601,3.2078,2557.6,2557.3,0.391]
[1727044474797,3.2078,2557.6,2557.2,0.39102]
[1727044475002,3.2078,2557.6,2557.1,1.8197]
[1727044475301,3.2078,2557.3,2556.9,17.9068]
[1727044475504,1.88691,2557.9,2556.9,4.928]
[1727044475505,3.2078,2557.1,2556.9,4.928]
[1727044475698,3.2078,2557.0,2556.9,4.928]
[1727044477307,0.8909,2557.3,2556.9,11.7992]
[1727044477519,3.2078,2557.4,2557.0,3.9104]
[1727044477808,3.2078,2557.4,2557.2,0.39103]
[1727044478014,3.2078,2557.4,2556.9,7.888]
[1727044478211,0.8591,2557.3,2556.9,4.928]
[1727044478404,3.2078,2557.1,2556.9,4.928]
[1727044479503,0.39106,2557.0,2556.5,0.8701]
[1727044479702,3.2078,2556.7,2556.5,0.8701]
[1727044479907,3.2078,2556.7,2556.4,0.8677]
[1727044480101,3.2078,2556.7,2556.4,5.7967]
[1727044481011,3.2078,2556.7,2556.5,0.39113]
[1727044481913,1.77,2557.3,2556.6,9.03707215]
[1727044482111,3.2078,2557.4,2557.1,0.39104]
[1727044482307,3.2078,2557.4,2556.7,4.1422]
[1727044482508,3.2078,2557.4,2557.0,0.39105]
[1727044482709,3.2078,2557.4,2557.1,0.39104]
[1727044482905,3.2078,2557.4,2556.7,4.1422]
[1727044483107,3.2078,2557.4,2556.7,3.2078]
[1727044483312,0.9196,2557.3,2556.9,0.39107]
[1727044483511,0.9196,2557.3,2557.0,0.39105]
[1727044484015,0.9196,2557.3,2556.9,0.39106]
[1727044484415,3.2078,2558.1,2557.5,0.39097]
[1727044484721,3.2078,2558.1,2557.7,0.39095]
[1727044484909,3.5987,2558.1,2557.6,4.93]
[1727044485108,3.2078,2557.8,2557.6,4.93]
[1727044485417,3.2078,2557.8,2557.3,0.9344]
[1727044485418,0.39096,2557.7,2557.3,0.9344]
[1727044485612,3.2078,2557.8,2557.1,4.929]
[1727044485921,3.2078,2557.8,2557.1,5.32004]
[1727044485922,1.7825,2557.6,2557.1,5.32004]
[1727044486918,1.7825,2557.6,2557.1,5.32003]
[1727044487509,1.7825,2557.6,2557.1,0.39103]
[1727044487713,3.2078,2557.5,2557.1,4.929]
[1727044489419,3.59878,2557.5,2557.1,4.929]
[1727044489622,3.2078,2558.3,2557.5,0.39097]
[1727044489820,3.2078,2558.3,2557.3,2.96]
[1727044489821,3.2078,2558.0,2557.3,2.96]
[1727044490007,3.2078,2558.0,2557.4,0.9125]
[1727044490208,0.9044,2557.9,2557.4,1.30349]
[1727044490615,0.9044,2557.9,2557.4,0.9125]
[1727044492521,3.2078,2557.6,2557.2,0.907]
[1727044492717,1.29533,2557.9,2557.2,0.907]
[1727044492718,3.2078,2557.3,2557.2,0.907]
[1727044493320,3.2078,2557.3,2556.9,5.7842]
[1727044493620,3.2078,2557.3,2557.0,0.39106]
[1727044493820,3.2078,2557.3,2556.9,5.7842]
[1727044494417,3.2078,2557.3,2556.9,6.17527]
[1727044494810,3.2078,2557.3,2556.9,5.7842]
[1727044495726,0.9295,2557.5,2557.0,3.2078]
[1727044496023,3.2078,2557.4,2556.9,0.8552]
[1727044496719,3.2078,2557.4,2556.8,0.9171]
[1727044496918,0.8561,2557.3,2556.8,0.9171]
[1727044497231,0.8561,2557.3,2556.8,1.30818]
[1727044498820,0.8561,2557.3,2556.8,0.9171]
[1727044499421,3.2078,2557.1,2556.8,0.9171]
[1727044499614,3.2078,2557.1,2556.7,2.63]
[1727044499810,3.2078,2557.1,2556.6,0.9205]
[1727044499811,0.8594,2557.0,2556.6,0.9205]
[1727044500026,0.8594,2557.0,2556.6,1.31161]
[1727044500220,0.8594,2557.0,2556.6,0.9205]
[1727044500412,0.903,2557.2,2556.6,3.5505]
[1727044500725,3.2078,2557.4,2556.8,3.2078]
[1727044500919,1.7743,2557.3,2556.6,1.31161]
[1727044501116,3.2078,2557.1,2556.6,0.9205]
[1727044501321,0.8594,2557.0,2556.6,0.9205]
[1727044501525,0.8594,2557.0,2556.3,2.63]
[1727044501722,0.8594,2557.0,2556.7,0.3911]
[1727044501914,0.8594,2557.0,2556.8,0.9266]
[1727044502225,0.8775,2557.3,2556.9,0.39106]
[1727044503024,0.8938,2557.7,2557.3,0.39101]
[1727044503226,0.8938,2557.7,2557.2,3.2078]
[1727044503418,0.8938,2557.7,2557.1,3.59884]
[1727044503613,0.8938,2557.7,2557.1,0.39104]
[1727044504021,1.28476,2557.7,2557.0,2.18895]
[1727044504217,0.8938,2557.7,2557.0,0.9122]
[1727044504419,0.39101,2557.3,2556.9,5.037]
[1727044504733,5.8364,2557.2,2556.9,5.037]
[1727044504919,5.8364,2557.2,2556.8,4.52549]
[1727044505123,5.8364,2557.2,2556.8,4.1344]
[1727044506218,3.2078,2557.6,2557.1,0.39104]
[1727044506529,3.2078,2557.6,2556.8,4.1344]
[1727044506530,4.1075,2557.6,2557.0,0.39105]
[1727044506727,4.1075,2557.6,2556.9,0.9071]
[1727044506917,3.2078,2557.3,2556.9,0.9071]
[1727044507323,3.2078,2557.3,2556.9,1.29817]
[1727044507831,3.2078,2557.3,2556.9,0.9071]
[1727044508426,0.8997,2557.6,2557.4,0.39099]
[1727044508628,0.8997,2557.6,2557.1,3.2078]
[1727044508629,0.8997,2557.6,2557.3,0.391]
[1727044508832,0.8997,2557.6,2557.4,0.9078]
[1727044509523,0.8997,2557.6,2557.0,3.5425]
[1727044509725,0.8997,2557.6,2556.8,3.2078]
[1727044509923,3.2078,2557.4,2556.9,0.39107]
[1727044510723,4.0834,2557.4,2556.9,0.39107]
[1727044511031,4.0834,2557.4,2556.8,4.1156]
[1727044511331,5.48679255,2557.4,2556.8,4.50669]
[1727044511536,5.09579255,2557.4,2556.9,0.39107]
[1727044512330,5.09579255,2557.4,2556.9,0.39106]
[1727044512633,5.09579255,2557.4,2557.0,0.39106]
[1727044512927,5.09579255,2557.4,2556.8,4.1156]
[1727044513230,2.9244851,2557.6,2556.8,4.1156]
[1727044513231,0.8997,2557.6,2557.4,0.39099]
[1727044513726,0.8997,2557.6,2557.3,0.391]
[1727044514122,0.8997,2557.6,2557.2,1.31242]
[1727044514323,0.8997,2557.6,2557.3,0.391]
[1727044514731,0.8997,2557.6,2557.2,1.31242]
[1727044514920,1.91209255,2557.6,2557.3,0.39101]
[1727044515120,1.91209255,2557.6,2557.2,1.31242]
[1727044515532,1.91209255,2557.6,2557.2,0.9214]
[1727044515739,1.91209255,2557.6,2557.2,1.31242]
[1727044515929,1.91209255,2557.6,2557.3,0.39101]
[1727044516431,1.91209255,2557.6,2557.2,0.9214]
[1727044516641,1.01239255,2557.5,2557.2,0.9214]
[1727044516828,1.79099255,2557.5,2557.2,0.9214]
[1727044517031,3.2078,2557.4,2556.9,0.39107]
[1727044517228,4.22019255,2557.4,2556.9,1.41916017]
[1727044517734,3.59885,2557.1,2556.9,1.02809017]
[1727044517931,2.92975255,2557.0,2556.5,1.79629017]
[1727044518146,3.2078,2556.8,2556.5,0.7682]
[1727044518327,1.90963883,2557.1,2556.5,0.7682]
[1727044518328,3.2078,2557.1,2556.9,0.39107]
[1727044518523,1.01239255,2557.2,2556.8,2.63]
[1727044518727,1.76009255,2557.2,2556.9,0.39106]
[1727044518927,0.7477,2557.2,2556.8,4.41716618]
[1727044519129,1.01239255,2557.3,2557.0,3.2078]
[1727044519325,1.01239255,2557.4,2557.2,0.39103]
[1727044519526,1.01239255,2557.4,2557.3,0.39101]
[1727044519745,5.2325851,2557.7,2557.2,1.02386618]
[1727044519746,1.01239255,2557.6,2557.2,1.02386618]
[1727044520836,1.01239255,2557.6,2557.3,0.391]
[1727044521032,1.01239255,2557.6,2557.2,1.02386618]
[1727044521238,1.75469255,2557.8,2557.5,0.39097]
[1727044521941,0.94423255,2557.8,2557.7,0.39095]
[1727044522236,1.51858883,2558.3,2558.0,0.3909]
[1727044522623,1.51858883,2558.3,2558.1,0.762]
[1727044522826,3.2078,2558.4,2558.1,0.762]
[1727044522827,4.72638883,2558.4,2558.1,0.762]
[1727044523236,3.2078,2558.4,2558.1,0.762]
[1727044524325,1.564,2558.6,2558.1,0.762]
[1727044524522,4.72638883,2558.8,2558.5,0.39082]
[1727044524729,3.2078,2558.8,2558.3,0.39085]
[1727044524934,3.2078,2558.8,2558.2,0.39087]
[1727044525126,1.51858883,2558.7,2558.1,0.762]
[1727044525443,1.51858883,2558.7,2558.0,3.2078]
[1727044525444,3.59864,2558.5,2558.0,3.2078]
[1727044525628,0.7639,2558.4,2558.0,3.2078]
[1727044525829,1.5315,2558.4,2558.0,3.2078]
[1727044526033,1.5315,2558.4,2558.0,0.3909]
[1727044527135,1.5315,2558.4,2558.1,0.39089]
[1727044527832,1.5315,2558.4,2557.8,0.8015]
[1727044527833,1.5315,2558.4,2558.0,0.3909]
[1727044529031,1.5315,2558.4,2557.8,0.8015]
[1727044529233,1.92235,2558.4,2557.8,1.19243]
[1727044529435,1.5315,2558.4,2557.8,0.8015]
[1727044529642,1.92235,2558.4,2557.9,0.39091]
[1727044529846,1.92235,2558.4,2557.8,1.19243]
[1727044530531,1.92235,2558.4,2557.9,0.39091]
[1727044530833,3.59868,2558.2,2557.7,5.5641]
[1727044531136,0.7729,2558.1,2557.7,5.5641]
[1727044531336,1.1638,2558.1,2557.7,5.5641]
[1727044531834,0.7729,2558.1,2557.7,5.95505]
[1727044532036,1.1638,2558.1,2557.7,5.5641]
[1727044532235,0.7729,2558.1,2557.7,4.796]
[1727044532545,1.1638,2558.1,2557.7,4.796]
[1727044532841,0.7729,2558.1,2557.7,4.796]
[1727044533232,0.7729,2558.1,2557.8,0.39094]
[1727044533630,0.7729,2558.1,2557.8,0.39093]
[1727044534433,3.2078,2558.2,2557.9,0.39092]
[1727044534635,3.2078,2558.2,2557.9,0.39091]
[1727044535140,3.2078,2558.2,2558.0,0.39091]
[1727044535540,3.2078,2558.2,2557.9,1.14542]
[1727044535943,3.2078,2558.2,2557.9,0.7545]
[1727044536135,0.39092,2557.9,2557.4,1.41485618]
[1727044536437,3.2078,2558.1,2557.7,0.39095]
[1727044536642,3.2078,2558.1,2557.5,3.40460081]
[1727044536838,3.2078,2558.1,2557.9,0.39092]
[1727044537029,3.2078,2558.1,2558.0,0.39091]
[1727044537632,3.2078,2558.1,2557.9,0.39091]
[1727044537947,3.2078,2558.1,2557.5,4.38204081]
[1727044538547,3.2078,2558.1,2557.9,0.39092]
[1727044539144,3.2078,2558.1,2557.8,0.39093]
[1727044539342,3.5987,2558.1,2557.6,0.39096]
[1727044539644,3.2078,2558.1,2557.5,4.795]
[1727044539843,3.2078,2557.8,2557.4,1.8853]
[1727044540139,2.3502,2557.7,2557.4,1.4943]
[1727044540344,2.3502,2557.7,2557.5,2.53098]
[1727044540554,1.5603,2557.7,2557.5,2.14]
[1727044540847,1.5603,2557.7,2557.4,1.4943]
[1727044541146,1.5603,2557.7,2557.4,1.88529]
[1727044541438,1.95126,2557.7,2557.4,0.7545]
[1727044541645,3.2078,2557.5,2557.2,4.795]
[1727044542047,2.14,2557.3,2556.5,1.41499618]
[1727044542350,3.2078,2556.6,2555.9,1.54213526]
[1727044542539,3.2078,2556.6,2555.7,1.02386618]
[1727044542540,3.2078,2556.3,2555.8,0.39124]
[1727044542739,3.2078,2556.0,2555.7,1.5413]
[1727044543241,3.9128,2555.9,2555.4,0.39129]